bitfinex/quotes_ETHUSD_20220308
["timestamp","ask_amount","ask_price","bid_price","bid_amount"]
[1646717897104,0.491,2520.5,2520.0,1.21219214]
[1646717897305,0.491,2520.5,2520.4,0.91443574]
[1646717897905,0.491,2520.5,2519.9,0.99229]
[1646717899107,0.00352124,2520.3,2520.1,0.87316131]
[1646717899753,0.491,2520.5,2520.1,0.87316131]
[1646717899949,0.491,2520.5,2519.9,0.99229]
[1646717900150,0.0052799,2520.3,2519.9,0.99229]
[1646717900950,0.491,2520.5,2520.2,1.2152328]
[1646717901453,0.00499269,2520.3,2520.2,1.2152328]
[1646717902256,0.491,2520.5,2520.2,1.2152328]
[1646717902455,0.0049928,2520.4,2520.2,1.2152328]
[1646717902655,0.0049928,2520.4,2519.9,0.99229]
[1646717902855,0.0049928,2520.4,2519.8,0.00491476]
[1646717903101,0.491,2520.3,2519.8,0.00491476]
[1646717903500,0.491,2520.3,2519.5,1.238]
[1646717904102,0.49565968,2520.3,2519.8,0.00466063]
[1646717904904,0.5003193,2520.3,2519.8,0.00932119]
[1646717905107,1.48813962,2520.3,2519.8,0.00466056]
[1646717905904,1.48348,2520.3,2519.8,1.04709297]
[1646717906106,1.48817911,2520.3,2519.8,1.05179304]
[1646717906954,1.48817911,2520.3,2519.8,1.04709297]
[1646717907158,1.48348,2520.3,2519.8,1.04709297]
[1646717907354,1.48817911,2520.3,2519.8,1.05179304]
[1646717907554,0.49569911,2520.3,2519.8,1.05179304]
[1646717908155,0.491,2520.3,2519.8,1.04709297]
[1646717908559,0.49572885,2520.3,2519.8,1.05182278]
[1646717909456,0.491,2520.3,2519.8,1.04709297]
[1646717909658,0.491,2520.3,2519.8,1.05182011]
[1646717909659,0.49572619,2520.3,2519.8,1.05182011]
[1646717910699,0.491,2520.3,2519.8,1.04709297]
[1646717910900,0.49572619,2520.3,2519.8,1.05182011]
[1646717911905,0.491,2520.3,2519.8,1.04709297]
[1646717912105,0.49572305,2520.3,2519.8,1.05181697]
[1646717913107,0.49572305,2520.3,2519.8,1.04709297]
[1646717913108,0.491,2520.3,2519.8,1.04709297]
[1646717913508,0.49572097,2520.3,2519.8,1.0518149]
[1646717913907,0.49572097,2520.3,2520.2,1.08392846]
[1646717914108,0.64042375,2520.0,2519.9,0.90542975]
[1646717918501,0.64042375,2520.0,2519.8,0.00472266]
[1646717918702,1.13142375,2520.0,2519.8,0.00472266]
[1646717918904,1.61678681,2519.9,2519.8,0.00472266]
[1646717919101,2.10778681,2519.9,2519.8,0.00472266]
[1646717919901,2.10778681,2519.9,2519.8,0.00472263]
[1646717920301,2.10778681,2519.9,2519.1,1.05823967]
[1646717920502,0.491,2519.9,2519.1,1.35823967]
[1646717920701,0.491,2519.9,2519.7,0.00472259]
[1646717921501,0.491,2519.9,2519.1,1.35823967]
[1646717921764,0.491,2519.9,2519.5,1.00832668]
[1646717921955,0.491,2519.9,2519.7,0.00472262]
[1646717922857,0.491,2519.9,2519.5,1.00832668]
[1646717923057,0.491,2519.9,2519.7,0.00472262]
[1646717923757,1.61680718,2519.8,2519.7,0.00472262]
[1646717923956,1.61680718,2519.8,2519.1,1.5926]
[1646717924156,1.61680718,2519.8,2519.1,1.2926]
[1646717924358,1.61680718,2519.8,2519.7,0.00472264]
[1646717925258,1.61680718,2519.8,2519.4,0.94201198]
[1646717925503,1.61680718,2519.8,2519.6,0.00472267]
[1646717926302,1.61680718,2519.8,2519.4,0.94201198]
[1646717926702,1.61680718,2519.8,2519.6,0.00472272]
[1646717926906,1.63306375,2520.0,2519.6,0.00472272]
[1646717926907,0.64042375,2520.0,2519.6,0.00472272]
[1646717927107,1.61674279,2519.9,2519.6,0.00472272]
[1646717927512,0.64042375,2520.0,2519.6,0.00472272]
[1646717928010,0.64042375,2520.0,2519.7,0.99236]
[1646717928408,0.64042375,2520.0,2519.8,0.87645767]
[1646717929266,0.64042375,2520.0,2519.8,1.17645767]
[1646717929452,0.64042375,2520.0,2519.9,0.9923]
[1646717929752,0.64042375,2520.0,2519.8,3.16081767]
[1646717930156,0.64042375,2520.0,2519.8,4.16554026]
[1646717931158,0.64042375,2520.0,2519.8,4.16081767]
[1646717931357,0.64042375,2520.0,2519.8,4.16554027]
[1646717931561,0.64042375,2520.0,2519.8,0.0047226]
[1646717931763,1.61656982,2519.9,2519.8,0.0047226]
[1646717932363,1.61656982,2519.9,2519.5,1.98469]
[1646717932564,1.61656982,2519.9,2519.7,1.04746075]
[1646717933208,1.61656982,2519.9,2519.7,1.34746075]
[1646717933609,1.61656982,2519.9,2519.7,1.34273812]
[1646717933809,1.61656982,2519.9,2519.7,1.34776683]
[1646717934809,1.61656982,2519.9,2519.7,1.34273812]
[1646717935011,1.61656982,2519.9,2519.7,1.34776683]
[1646717936010,1.61656982,2519.9,2519.7,1.04273812]
[1646717936210,1.61656982,2519.9,2519.7,1.04776683]
[1646717937060,1.61656982,2519.9,2519.7,1.34273812]
[1646717937261,0.64042375,2520.0,2519.7,1.34273812]
[1646717937462,0.64042375,2520.0,2519.8,3.5]
[1646717937663,0.00502741,2520.3,2519.8,1.38714]
[1646717937862,0.1984,2520.9,2519.9,0.88218345]
[1646717938062,1.61627309,2520.8,2520.2,0.88218345]
[1646717938764,2.81437309,2520.8,2520.0,0.88218345]
[1646717938964,1.7241929,2520.1,2520.0,0.88218345]
[1646717939164,4.38906599,2520.1,2520.0,0.88218345]
[1646717939564,4.88006599,2520.1,2520.0,0.88218345]
[1646717939763,4.88006599,2520.1,2519.5,1.96245333]
[1646717939962,1.61627309,2520.0,2519.5,1.96245333]
[1646717940363,1.61627309,2520.0,2519.7,0.88218345]
[1646717942009,1.61627309,2520.0,2519.8,1.87454345]
[1646717943409,1.61627309,2520.0,2519.8,1.87982315]
[1646717944456,1.61627309,2520.0,2519.8,1.87454345]
[1646717944656,1.61627309,2520.0,2519.8,1.87982315]
[1646717945057,1.61627309,2520.0,2519.9,0.88218345]
[1646717945657,2.50207309,2520.0,2519.9,0.88218345]
[1646717946261,2.50207309,2520.0,2519.8,0.00497577]
[1646717946459,2.01107309,2519.9,2519.8,0.00497577]
[1646717946657,2.50207309,2519.9,2519.8,0.00497577]
[1646717946862,2.50207309,2519.9,2519.3,0.88218345]
[1646717947063,0.8858,2519.9,2519.8,0.00497587]
[1646717947464,2.5026715,2519.9,2519.8,0.00497587]
[1646717948104,2.5026715,2519.9,2519.3,0.88218345]
[1646717948302,1.6168715,2519.8,2519.7,0.00497597]
[1646717949107,1.6168715,2519.8,2519.3,0.88218345]
[1646717949304,1.6168715,2519.8,2519.5,0.88218345]
[1646717949504,2.2151929,2520.1,2519.6,0.88719644]
[1646717949505,1.7241929,2520.1,2519.6,0.88719644]
[1646717949710,1.61667623,2520.0,2519.6,0.88719644]
[1646717950107,1.61667623,2520.0,2519.7,0.88218345]
[1646717950309,1.7241929,2520.1,2519.9,0.88218345]
[1646717951306,1.7241929,2520.1,2519.9,1.87439345]
[1646717951961,1.7241929,2520.1,2519.9,1.87940629]
[1646717952761,1.7241929,2520.1,2519.9,1.87439345]
[1646717952962,1.7241929,2520.1,2520.0,0.88218345]
[1646717956513,3.34078698,2520.1,2520.0,0.88218345]
[1646717956919,1.7241929,2520.1,2520.0,0.88218345]
[1646717960756,1.7241929,2520.1,2520.0,1.18218345]
[1646717960957,1.72302066,2520.1,2520.0,1.18218345]
[1646717968962,1.72302066,2520.1,2520.0,0.88218345]
[1646717973512,1.72302066,2520.1,2520.0,1.18218345]
[1646717974357,1.72302066,2520.1,2520.0,2.41485713]
[1646717979407,1.72302066,2520.1,2520.0,1.87447345]
[1646717979610,1.72302066,2520.1,2520.0,0.88218345]
[1646717985509,1.72162628,2520.1,2520.0,0.88218345]
[1646717985706,1.72162628,2520.1,2520.0,1.18218345]
[1646717988311,1.72162628,2520.1,2520.0,1.78473101]
[1646717988512,1.72162628,2520.1,2520.0,1.18218345]
[1646717995020,1.72162628,2520.1,2520.0,0.88218345]
[1646717997164,5.22162628,2520.1,2520.0,0.88218345]
[1646717997561,1.72162628,2520.1,2520.0,0.88218345]
[1646717997962,5.61642628,2520.1,2520.0,0.88218345]
[1646717998163,2.11642628,2520.1,2520.0,0.88218345]
[1646718000165,1.72162628,2520.1,2520.0,0.88218345]
[1646718004269,1.72162628,2520.1,2520.0,1.18218345]
[1646718004661,1.72162628,2520.1,2520.0,0.88218345]
[1646718005164,1.1024,2520.6,2520.0,0.88218345]
[1646718005362,1.61647286,2520.5,2520.2,0.88218345]
[1646718005861,1.61647286,2520.5,2520.2,0.00470682]
[1646718006161,3.9427,2520.7,2520.2,0.00470682]
[1646718006364,1.61641798,2520.6,2520.2,0.00470682]
[1646718006864,1.61641798,2520.6,2520.4,0.88218345]
[1646718007064,3.4517,2520.7,2520.4,0.88218345]
[1646718007265,0.39950573,2520.8,2520.4,0.88218345]
[1646718007564,0.00470573,2520.8,2520.4,0.88218345]
[1646718007764,0.00470573,2520.8,2520.5,0.88218345]
[1646718008011,0.3948,2520.9,2520.5,0.88218345]
[1646718008210,0.3948,2521.1,2520.5,0.88218345]
[1646718008411,0.00470841,2520.8,2520.5,1.87904252]
[1646718008811,0.00470841,2520.8,2520.7,1.79531416]
[1646718009312,0.3948,2521.1,2520.7,2.09531416]
[1646718009513,0.00471231,2520.9,2520.7,2.09531416]
[1646718010513,0.3948,2521.1,2520.7,3.08735416]
[1646718010714,0.00318992,2520.9,2520.7,3.08735416]
[1646718011521,0.3948,2521.1,2520.7,3.08735416]
[1646718011764,0.00318961,2520.9,2520.7,3.08735416]
[1646718012767,0.3948,2521.1,2520.7,3.08735416]
[1646718013166,0.00497362,2520.9,2520.7,3.08735416]
[1646718013966,0.491,2521.2,2520.7,3.08735416]
[1646718014368,0.00497362,2520.9,2520.7,3.08735416]
[1646718014569,0.00497362,2520.9,2520.7,1.18218345]
[1646718015170,0.491,2521.2,2520.7,1.18218345]
[1646718015611,0.00496499,2520.9,2520.7,1.18218345]
[1646718015813,0.00496499,2520.9,2520.8,1.87421345]
[1646718016018,0.00496499,2520.9,2520.8,2.79911345]
[1646718016215,4.5917,2521.3,2521.0,0.88218345]
[1646718016412,2.8864,2521.4,2521.0,3.16545345]
[1646718016611,2.8864,2521.4,2521.1,0.88218345]
[1646718016818,0.0127223,2521.5,2521.4,1.87380345]
[1646718017015,0.0127223,2521.5,2521.4,2.71910345]
[1646718017216,0.0127223,2521.5,2521.4,3.01910345]
[1646718017416,0.0127223,2521.5,2521.4,4.01910345]
[1646718017615,2.552456,2521.8,2521.4,4.01910345]
[1646718018016,2.552456,2521.8,2521.4,5.01058345]
[1646718018616,2.552456,2521.8,2521.4,5.61966101]
[1646718019017,0.00491051,2521.7,2521.6,0.88218345]
[1646718019279,0.0196391,2522.1,2521.8,0.88218345]
[1646718019468,0.0196391,2522.1,2521.9,0.88218345]
[1646718020069,4.6819,2522.4,2521.9,0.88218345]
[1646718020266,4.6819,2522.4,2521.8,4.22982]
[1646718020267,4.6819,2522.4,2522.3,0.88218345]
[1646718020466,0.3948,2522.8,2522.3,1.46717325]
[1646718021394,0.3948,2522.8,2522.3,2.45838405]
[1646718022674,0.00506619,2522.7,2522.3,2.45838405]
[1646718022874,0.00506619,2522.7,2522.4,4.5693824]
[1646718023117,0.00506619,2522.7,2522.5,0.3]
[1646718023720,2.8927,2522.9,2522.5,0.3]
[1646718023918,2.8927,2522.9,2522.6,2.02994387]
[1646718024120,0.00506616,2522.7,2522.6,2.02994387]
[1646718024318,0.00506616,2522.7,2522.6,3.02112917]
[1646718024918,9.0697,2523.3,2522.6,3.02112917]
[1646718025120,0.02006254,2523.2,2522.8,0.9912]
[1646718025520,0.5,2522.9,2522.8,1.9823219]
[1646718025720,0.02006254,2523.2,2522.8,2.8622219]
[1646718025919,0.02006254,2523.2,2522.9,0.3948]
[1646718026126,0.02006254,2523.2,2522.9,4.0413453]
[1646718026127,0.5,2523.2,2522.9,4.0413453]
[1646718026325,0.02006206,2523.4,2523.0,1.38555]
[1646718026522,0.02006206,2523.4,2523.1,1.01326974]
[1646718026769,0.02006206,2523.4,2523.1,4.89202086]
[1646718027168,0.02006206,2523.4,2523.1,5.89202086]
[1646718027368,3.0763,2523.7,2523.3,0.39359584]
[1646718027565,0.00501602,2523.4,2523.3,0.39359584]
[1646718027767,0.02006109,2523.8,2523.3,1.88122584]
[1646718027966,0.02006109,2523.8,2523.4,6.86530584]
[1646718028165,0.02006109,2523.8,2523.4,8.07240584]
[1646718028368,4.8972,2524.6,2523.5,0.86645189]
[1646718028565,1.61429878,2524.5,2524.0,0.99056]
[1646718028766,1.61429878,2524.5,2524.0,2.22706]
[1646718028964,1.61429878,2524.5,2524.1,1.98098]
[1646718029165,2.9994,2524.7,2524.1,1.98098]
[1646718029769,4.01707699,2524.7,2524.2,0.99057]
[1646718029966,2.9994,2524.7,2524.1,1.98098]
[1646718030166,5.1143404,2524.6,2524.1,1.98098]
[1646718030367,1.6143404,2524.5,2524.1,1.98098]
[1646718030616,0.198,2524.6,2524.1,1.98098]
[1646718030818,1.61441384,2524.5,2524.1,1.98098]
[1646718031216,0.00349244,2524.4,2524.1,1.98098]
[1646718032019,3.5,2524.5,2524.1,1.98098]
[1646718032219,0.00528838,2524.4,2524.1,1.98098]
[1646718032820,0.00528838,2524.4,2524.3,0.99051]
[1646718033022,0.00528838,2524.4,2524.3,1.84271]
[1646718033221,1.3722,2525.1,2524.3,2.14271]
[1646718033425,4.2707,2525.2,2524.3,1.1522]
[1646718033621,0.00528831,2524.5,2524.4,1.98092]
[1646718034461,4.58160305,2525.2,2524.4,1.98092]
[1646718034661,0.00528823,2524.6,2524.4,1.98092]
[1646718035462,0.00528823,2524.6,2524.2,1.98114]
[1646718035661,1.3391332,2524.8,2524.2,0.3]
[1646718035862,0.0052882,2524.6,2524.1,0.3]
[1646718036062,0.0052882,2524.6,2524.2,0.99068]
[1646718036261,0.0052882,2524.6,2524.2,1.29068]
[1646718036865,1.3391332,2524.8,2524.2,1.29068]
[1646718037066,0.00511375,2524.5,2524.2,0.99068]
[1646718038114,1.3391332,2524.8,2524.2,0.99068]
[1646718038314,0.00511379,2524.5,2524.2,1.29068]
[1646718039320,0.3948,2525.1,2524.4,0.99053]
[1646718039518,0.00511379,2524.5,2524.4,0.99053]
[1646718039717,0.00511379,2524.5,2524.4,1.29053]
[1646718040518,0.3948,2525.1,2524.3,2.48860251]
[1646718040722,0.3948,2525.1,2522.9,4.5135707]
[1646718040723,3.01258084,2524.4,2522.9,4.5135707]
[1646718040928,3.0,2523.0,2522.7,0.22105362]
[1646718041118,3.01274931,2522.8,2521.8,1.0]
[1646718041319,3.0,2522.6,2521.9,7.9293]
[1646718041521,3.0,2522.6,2521.8,1.0]
[1646718041522,3.0,2522.3,2521.8,1.0]
[1646718041779,0.991945,2522.1,2521.8,1.0]
[1646718041967,0.491,2522.0,2520.8,0.93297006]
[1646718042167,0.491,2521.9,2521.4,0.00501513]
[1646718042367,0.491,2521.9,2521.5,0.99143]
[1646718042567,0.491,2521.9,2521.4,0.00501513]
[1646718042968,0.491,2521.9,2521.2,0.41415898]
[1646718043167,0.491,2521.9,2521.4,0.0050143]
[1646718043168,1.4827,2521.9,2521.4,0.0050143]
[1646718043769,3.5,2521.8,2521.4,0.0050143]
[1646718043970,3.46623,2521.9,2521.4,0.0050143]
[1646718043971,1.48285,2521.7,2521.4,0.0050143]
[1646718044271,0.491,2521.6,2521.2,0.41415898]
[1646718044469,0.391,2521.6,2521.4,0.00502123]
[1646718045519,0.391,2521.6,2521.2,0.71415898]
[1646718045718,0.391,2521.6,2521.4,0.0050211]
[1646718046620,0.391,2521.6,2521.2,0.71415898]
[1646718047224,3.5,2521.5,2521.2,0.71415898]
[1646718047427,0.491,2521.4,2521.2,0.41415898]
[1646718047625,3.5,2521.3,2521.2,0.41415898]
[1646718047829,3.991,2521.3,2521.2,0.41415898]
[1646718048025,4.3858,2521.3,2521.2,0.41918495]
[1646718048223,4.3858,2521.3,2521.2,0.00502597]
[1646718048425,5.4050837,2521.3,2521.2,0.00502597]
[1646718048923,1.9842284,2521.1,2520.3,0.81095061]
[1646718049123,0.99211,2520.9,2520.3,0.41435061]
[1646718049398,3.991,2520.8,2520.3,0.41435061]
[1646718049599,0.491,2520.7,2520.3,0.41435061]
[1646718049796,0.491,2520.8,2520.3,0.3]
[1646718049996,0.491,2520.8,2519.9,0.80914731]
[1646718050400,0.491,2520.8,2520.4,0.00484245]
[1646718051403,0.491,2520.8,2520.2,0.99198]
[1646718051598,0.491,2520.8,2520.5,0.0048429]
[1646718052502,3.5,2520.7,2520.2,1.29198]
[1646718052701,0.491,2520.8,2520.2,1.29198]
[1646718052903,0.491,2520.8,2520.5,0.00484287]
[1646718053712,0.491,2520.8,2520.4,1.29191]
[1646718054115,0.491,2520.8,2520.5,0.00500906]
[1646718055114,0.441,2520.8,2520.4,1.29191]
[1646718055315,0.441,2520.8,2520.5,0.0050115]
[1646718056116,0.441,2520.8,2520.4,1.29191]
[1646718056314,0.441,2520.8,2520.4,0.3]
[1646718056513,0.441,2520.8,2520.5,0.0050115]
[1646718056514,3.5,2520.7,2520.5,0.0050115]
[1646718057273,0.99217,2520.8,2520.5,0.0050115]
[1646718057472,0.491,2520.7,2519.8,3.07583094]
[1646718057675,3.5,2520.6,2520.5,0.00502934]
[1646718057878,0.491,2520.7,2520.5,0.00502934]
[1646718058575,0.491,2520.7,2520.0,0.99208]
[1646718058776,0.491,2520.7,2520.5,0.00502357]
[1646718059775,0.491,2520.7,2519.8,4.47063094]
[1646718059977,0.491,2520.7,2520.5,0.00502357]
[1646718061113,0.491,2520.7,2519.7,0.41433456]
[1646718061114,3.5,2520.6,2519.7,0.41433456]
[1646718061415,3.5,2520.6,2520.5,0.00502357]
[1646718061612,0.491,2520.6,2520.5,0.00502357]
[1646718061817,5.97567,2520.6,2520.5,0.00502357]
[1646718062216,5.97567,2520.6,2519.7,0.71433456]
[1646718062217,1.9847966,2520.4,2519.7,0.71433456]
[1646718062419,4.49242,2520.3,2519.7,0.71433456]
[1646718062617,0.99242,2520.3,2519.7,0.71433456]
[1646718063321,0.491,2520.4,2519.7,0.41433456]
[1646718063517,0.491,2520.4,2519.7,1.52145168]
[1646718063718,0.491,2520.4,2519.9,0.00502372]
[1646718064568,0.491,2520.4,2519.7,2.51370168]
[1646718064569,0.2202,2520.4,2519.7,2.81370168]
[1646718064865,0.2202,2520.4,2520.0,0.00502363]
[1646718065465,0.2202,2520.4,2520.1,0.99209]
[1646718065666,2.9644,2520.7,2520.1,0.989937]
[1646718065870,2.9644,2520.7,2520.1,0.3]
[1646718066066,2.9644,2520.7,2520.1,0.30502364]
[1646718066268,2.9644,2520.7,2520.5,0.93010927]
[1646718066469,3.07,2521.2,2520.6,0.99188]
[1646718066665,5.9061,2521.3,2520.6,0.99188]
[1646718066666,4.753,2521.3,2520.6,0.99188]
[1646718067069,0.1983,2521.5,2520.6,0.99188]
[1646718067273,0.1983,2521.5,2520.8,0.00502322]
[1646718068220,0.1983,2521.5,2520.6,0.99188]
[1646718068424,0.1983,2521.5,2521.0,0.00502307]
[1646718068621,8.34206,2521.6,2520.6,0.79690307]
[1646718069424,8.34206,2521.6,2520.5,0.3]
[1646718069425,1.38685,2521.5,2520.5,0.3]
[1646718069626,1.38685,2521.5,2520.3,1.0]
[1646718069627,0.99206,2521.3,2520.3,1.0]
[1646718069825,3.5,2521.2,2520.3,0.3]
[1646718070025,3.5,2521.2,2520.1,2.69815416]
[1646718070226,4.4974,2521.3,2520.2,0.60329804]
[1646718070427,4.4974,2521.3,2520.2,0.20849804]
[1646718070626,4.4974,2521.3,2520.3,0.99201]
[1646718070826,4.4974,2521.3,2520.3,1.29201]
[1646718071028,5.48942,2521.3,2520.3,1.29201]
[1646718071529,5.88422,2521.3,2520.3,1.29201]
[1646718071776,5.88422,2521.3,2520.3,0.3]
[1646718071968,6.37522,2521.3,2520.3,0.3]
[1646718072168,4.492,2521.2,2520.2,0.3]
[1646718072369,0.99206,2521.1,2520.1,4.65749095]
[1646718072968,0.99206,2521.1,2520.1,2.67358095]
[1646718073369,0.99206,2521.1,2520.5,0.00529368]
[1646718073572,1.38697,2520.9,2520.5,0.00529368]
[1646718073770,3.8948,2520.8,2520.5,0.00529368]
[1646718073969,6.8716595,2520.8,2520.5,0.00529368]
[1646718074168,6.8716595,2520.8,2519.5,2.53703665]
[1646718074169,3.6312,2520.7,2519.5,2.53703665]
[1646718074370,3.5,2520.6,2520.5,0.00180447]
[1646718074570,3.6312,2520.7,2520.5,0.00180447]
[1646718074769,5.61581,2520.7,2520.5,0.00180447]
[1646718074970,3.5,2520.6,2520.5,0.00180447]
[1646718075371,3.5,2520.6,2519.7,2.41030184]
[1646718075614,3.5,2520.6,2520.4,0.00180454]
[1646718076514,3.5,2520.6,2519.7,1.29226]
[1646718076714,4.4922,2520.6,2519.7,2.46450629]
[1646718076917,4.4922,2520.6,2520.4,0.00529738]
[1646718077118,3.6312,2520.7,2520.4,0.00529738]
[1646718077922,3.6312,2520.7,2519.7,1.47224629]
[1646718078121,3.6312,2520.7,2520.4,0.00529734]
[1646718078621,0.491,2520.7,2520.4,0.00529734]
[1646718079020,0.491,2520.7,2520.3,1.29203]
[1646718079278,0.491,2520.7,2520.4,0.00529734]
[1646718079468,0.99207,2520.9,2520.4,0.00529734]
[1646718080269,0.99207,2520.9,2520.3,1.29203]
[1646718080471,0.99207,2520.9,2520.5,0.00529727]
[1646718081472,0.99207,2520.9,2520.3,1.29203]
[1646718081770,0.99207,2520.9,2520.6,0.00513832]
[1646718082475,0.1983,2521.1,2520.6,0.00513832]
[1646718082678,1.9841,2521.2,2520.5,1.29195]
[1646718082875,1.9841,2521.2,2520.6,0.00513829]
[1646718083116,2.9761,2521.2,2520.6,0.00513829]
[1646718083316,2.9761,2521.2,2520.6,0.30513829]
[1646718083918,2.9761,2521.2,2520.5,1.29195]
[1646718084116,2.9761,2521.2,2520.8,0.00513819]
[1646718085116,0.99193,2521.1,2520.5,1.29195]
[1646718085316,0.99193,2521.1,2520.9,0.00502165]
[1646718085717,7.4242,2521.3,2520.9,0.00502165]
[1646718086420,7.4242,2521.3,2520.8,0.277]
[1646718086617,7.4242,2521.3,2521.0,1.06740599]
[1646718086870,0.99177,2521.6,2521.0,2.12960599]
[1646718087072,1.38657,2521.6,2521.0,2.42960599]
[1646718088571,2.3784,2521.6,2521.0,2.42960599]
[1646718088974,0.99183,2521.5,2521.0,2.42960599]
[1646718089272,0.6893,2521.8,2521.0,2.42960599]
[1646718089572,1.98337,2522.0,2521.1,0.99173]
[1646718089871,1.61572535,2521.9,2521.1,1.29173]
[1646718090073,1.61572535,2521.9,2521.1,0.3]
[1646718090270,1.61572535,2521.9,2521.0,1.36740599]
[1646718090271,2.01052535,2521.9,2521.0,1.36740599]
[1646718090514,2.01056137,2521.8,2521.0,1.36740599]
[1646718090718,7.09954137,2521.7,2520.9,1.30502774]
[1646718090914,3.8948,2521.6,2520.9,0.30502774]
[1646718091115,0.3948,2521.6,2520.6,1.2284]
[1646718091318,5.51067703,2521.6,2520.9,0.00502774]
[1646718091622,2.01067703,2521.5,2520.9,0.00502774]
[1646718091820,1.98408,2521.3,2520.9,0.00502774]
[1646718092220,6.58368,2521.3,2520.4,1.65902828]
[1646718092720,6.58368,2521.3,2520.9,0.00502693]
[1646718093021,0.99207,2521.2,2520.9,0.00502693]
[1646718093220,1.9841317,2521.2,2520.9,0.00502693]
[1646718093420,1.9841317,2521.2,2520.4,1.95902828]
[1646718093421,0.99207,2521.2,2520.4,1.95902828]
[1646718093821,0.99207,2521.2,2520.9,0.00502686]
[1646718094467,1.9841,2521.2,2520.9,0.00502686]
[1646718094667,0.99203,2521.2,2520.5,0.99197]
[1646718094872,4.5996,2521.3,2520.9,0.00502686]
[1646718095269,6.96662,2521.6,2520.9,0.00502686]
[1646718095667,0.3948,2521.5,2520.9,0.00502686]
[1646718095867,0.3948,2521.5,2520.8,1.29184]
[1646718096067,0.99185,2521.3,2520.9,0.00502756]
[1646718097071,0.99185,2521.3,2520.8,1.29184]
[1646718097271,1.98373,2521.6,2520.9,0.00502735]
[1646718097474,1.6159351,2521.5,2520.9,0.00502735]
[1646718097672,1.98373,2521.6,2520.9,0.00502735]
[1646718097872,1.98373,2521.6,2520.9,0.99682735]
[1646718098317,1.98373,2521.6,2520.9,0.9918]
[1646718098516,0.99181,2521.5,2520.9,0.99682756]
[1646718098916,0.3,2521.6,2521.1,0.99174]
[1646718099118,4.6948,2521.7,2521.1,0.99174]
[1646718099317,0.8948,2521.7,2521.1,0.99174]
[1646718100018,1.49174,2521.7,2521.1,0.99174]
[1646718100219,0.99174,2521.7,2521.1,0.99174]
[1646718100424,0.5,2521.6,2521.1,0.99174]
[1646718100624,0.99174,2521.7,2521.4,1.16859758]
[1646718100821,7.3153,2522.1,2521.4,2.11379758]
[1646718101025,2.01054704,2522.0,2521.4,2.11379758]
[1646718101221,1.61574704,2521.9,2521.4,2.11379758]
[1646718101425,2.60743704,2521.9,2521.4,2.11379758]
[1646718101621,0.99169,2521.9,2521.4,2.11379758]
[1646718103272,1.98343,2521.9,2521.4,2.11379758]
[1646718103775,1.98343,2521.9,2521.0,2.98333]
[1646718103975,1.98343,2521.9,2521.0,1.98333]
[1646718103976,0.99184,2521.7,2521.0,1.98333]
[1646718104175,0.99184,2521.7,2521.0,0.3]
[1646718104374,0.99186,2521.6,2521.0,0.3]
[1646718104577,2.97563,2521.6,2520.9,0.00529988]
[1646718105518,2.97563,2521.6,2520.8,2.41633683]
[1646718105717,2.97563,2521.6,2520.9,0.0052996]
[1646718106218,0.99189,2521.3,2520.9,0.0052996]
[1646718106417,2.97563,2521.6,2521.0,0.99181]
[1646718106821,2.97563,2521.6,2521.0,1.29181]
[1646718108022,0.99182,2521.5,2521.0,1.29181]
[1646718108422,0.99186,2521.6,2521.0,1.29181]
[1646718109466,6.87039,2521.6,2521.0,0.3]
[1646718109668,3.37039,2521.6,2521.0,0.3]
[1646718109871,3.37039,2521.6,2520.9,0.00514312]
[1646718110369,3.37039,2521.6,2520.8,2.2835]
[1646718110568,3.37039,2521.6,2520.9,0.00514305]
[1646718110868,3.37039,2521.6,2520.9,1.23425266]
[1646718111067,0.99185,2521.5,2520.9,1.23425266]
[1646718111470,0.99184,2521.4,2520.9,1.22910961]
[1646718111667,0.99184,2521.4,2520.9,1.23418861]
[1646718111872,0.99184,2521.4,2521.0,0.9918]
[1646718112072,0.99184,2521.4,2521.0,1.2918]
[1646718113518,1.19005,2521.8,2521.4,0.0014476]
[1646718113717,0.491,2521.9,2521.4,0.0014476]
[1646718113718,0.1981,2521.9,2521.4,0.0014476]
[1646718113918,1.98345,2522.0,2521.4,0.8286476]
[1646718114521,5.48345,2522.0,2521.4,0.8286476]
[1646718114721,1.98345,2522.0,2521.4,1.8202776]
[1646718114922,1.98345,2522.0,2521.4,0.8286476]
[1646718115123,0.99165,2521.9,2521.4,0.8286476]
[1646718115322,0.99165,2521.9,2521.4,0.0014476]
[1646718115721,3.5,2521.8,2521.4,0.0014476]
[1646718115922,3.8948,2521.8,2521.4,0.0014476]
[1646718116323,2.97561,2521.7,2521.4,0.0014476]
[1646718116522,1.98374,2521.7,2521.4,0.0014476]
[1646718116971,3.8948,2521.6,2521.4,0.0014476]
[1646718117370,3.5,2521.5,2521.4,0.0014476]
[1646718117774,2.37853,2521.6,2521.4,0.0014476]
[1646718118372,3.5,2521.5,2521.4,0.0014476]
[1646718118573,3.49877827,2521.5,2521.4,0.0014476]
[1646718119174,3.89357827,2521.5,2521.4,0.0014476]
[1646718119375,0.8858,2521.5,2521.4,0.0014476]
[1646718119875,2.50179702,2521.5,2521.4,0.0014476]
[1646718123141,2.10699702,2521.5,2521.4,0.0014476]
[1646718123344,1.98374,2521.7,2521.4,0.0014476]
[1646718123641,2.18165,2521.9,2521.4,0.0014476]
[1646718123642,0.99167,2521.9,2521.4,0.0014476]
[1646718123843,1.61594093,2521.8,2521.4,0.0014476]
[1646718124042,0.3948,2521.8,2521.4,0.0014476]
[1646718124470,0.3948,2521.8,2521.5,0.99161]
[1646718125071,0.99167,2521.9,2521.5,0.99161]
[1646718125272,0.99167,2521.9,2521.5,1.29161]
[1646718125474,0.99167,2521.9,2521.5,2.49481]
[1646718126674,0.99167,2521.9,2521.5,1.5032]
[1646718126877,0.99166,2522.0,2521.5,1.5032]
[1646718127077,4.79578,2522.1,2521.5,5.0032]
[1646718127078,2.8124,2522.1,2521.5,5.0032]
[1646718127477,0.00502959,2522.2,2521.5,5.0032]
[1646718127879,0.00502959,2522.2,2521.5,6.0032]
[1646718128123,0.00502959,2522.2,2522.1,0.99137]
[1646718128421,0.3948,2522.6,2522.1,2.34947]